bitfinex/quotes_ETHUSD_20220117
["timestamp","ask_amount","ask_price","bid_price","bid_amount"]
[1642447957251,0.00113685,3222.6,3222.5,12.17564]
[1642447957650,0.00113685,3222.6,3222.5,15.57900578]
[1642447958497,0.00113685,3222.6,3222.5,17.15807202]
[1642447958696,0.00113685,3222.6,3222.5,13.75470624]
[1642447958899,2.75e-06,3222.6,3222.5,17.36529948]
[1642447960712,2.75e-06,3222.6,3222.5,13.75470624]
[1642447962145,2.75e-06,3222.6,3222.5,12.17564]
[1642447962952,2.75e-06,3222.6,3222.5,15.8339204]
[1642447963651,2.75e-06,3222.6,3222.5,18.17689755]
[1642447964653,2.34125748,3223.5,3222.5,18.17689755]
[1642447964854,2.34125748,3223.5,3222.9,0.77544]
[1642447965052,2.34125748,3223.5,3223.0,3.67571776]
[1642447965908,1.56018494,3223.3,3223.0,3.54098113]
[1642447966108,1.56018494,3223.3,3222.9,2.34022103]
[1642447966310,0.53406328,3223.2,3222.9,2.34022103]
[1642447966707,0.00284212,3223.1,3223.0,3.38176534]
[1642447966908,0.00284212,3223.1,3223.0,0.29351627]
[1642447968309,0.00284212,3223.1,3223.0,1.8582973]
[1642447969114,0.00284212,3223.1,3223.0,3.82257272]
[1642447969355,0.53349912,3223.1,3223.0,3.82257272]
[1642447969556,0.53349912,3223.1,3223.0,4.59351627]
[1642447969957,0.53349912,3223.1,3223.0,4.3]
[1642447970460,0.53349912,3223.1,3223.0,7.80529839]
[1642447971360,0.53349912,3223.1,3223.0,4.3]
[1642447971560,0.53349912,3223.1,3222.9,4.20643985]
[1642447971860,0.00227369,3223.0,3222.8,1.55103]
[1642447972058,0.53293069,3223.0,3222.8,1.55103]
[1642447972258,0.00170527,3222.9,3222.8,1.55103]
[1642447972459,0.00170527,3222.9,3222.8,10.15103]
[1642447973100,0.00170527,3222.9,3222.8,13.69579204]
[1642447973496,0.53236227,3222.9,3222.8,13.69579204]
[1642447973703,0.53236227,3222.9,3222.8,13.98641535]
[1642447976103,0.00170527,3222.9,3222.8,13.98641535]
[1642447977551,1.23467117,3223.9,3222.9,9.3]
[1642447977753,6.2046,3223.8,3223.0,4.18293167]
[1642447978052,1.53764689,3223.3,3223.0,0.77553]
[1642447978452,0.00170527,3223.2,3223.0,0.77553]
[1642447978651,0.00170527,3223.2,3222.8,1.84165331]
[1642447978854,0.00113685,3223.1,3222.8,1.84165331]
[1642447979053,0.00113685,3223.1,3222.8,0.29062331]
[1642447979253,0.00170527,3223.2,3222.8,0.29062331]
[1642447979453,2.35619518,3223.2,3223.1,0.29062331]
[1642447979652,2.35448991,3223.2,3223.1,0.29062331]
[1642447980352,2.88516248,3223.2,3223.1,0.29062331]
[1642447980801,2.88516248,3223.2,3222.7,1.85836801]
[1642447981198,0.00113685,3223.1,3222.7,1.85836801]
[1642447982002,0.53067257,3223.0,3222.7,1.85836801]
[1642447983201,1.34102393,3222.8,3222.5,1.5677447]
[1642447983600,1.34102393,3222.8,3222.6,0.00170527]
[1642447984350,2.35448991,3222.7,3222.6,0.00170527]
[1642447984650,2.35448991,3222.7,3222.5,0.00227369]
[1642447984851,2.88516248,3222.7,3222.5,0.00227369]
[1642447985650,2.88516248,3222.7,3222.4,0.00284212]
[1642447986054,0.53067257,3222.6,3222.4,0.00284212]
[1642447986650,2.88516248,3222.6,3222.4,0.00284212]
[1642447987451,0.53067257,3222.5,3222.4,0.00284212]
[1642447988299,0.53067257,3222.5,3222.4,5.00284212]
[1642447988705,0.53067257,3222.7,3222.4,5.29346543]
[1642447989104,0.53067257,3222.7,3222.5,0.00227369]
[1642447989505,2.35602879,3222.6,3222.5,0.292897]
[1642447990105,2.88670136,3222.6,3222.5,0.292897]
[1642447990304,2.88670136,3222.6,3222.5,5.792897]
[1642447990704,0.53067257,3222.6,3222.5,0.292897]
[1642447991314,0.53067257,3222.6,3222.5,4.942897]
[1642447991505,0.53067257,3222.9,3222.6,0.77563]
[1642447991951,0.53067257,3222.9,3222.7,0.00113685]
[1642447992751,2.35591565,3222.8,3222.7,0.29176016]
[1642447994255,0.53067257,3222.8,3222.7,0.29176016]
[1642447995054,2.88658822,3222.8,3222.7,0.29176016]
[1642447998115,2.88658822,3222.8,3222.7,5.60113685]
[1642447999118,2.88658822,3222.8,3222.7,5.89176016]
[1642448000155,2.88658822,3222.8,3222.7,9.99176016]
[1642448000555,0.53067257,3222.8,3222.7,5.89176016]
[1642448001759,0.53067257,3222.8,3222.7,0.29176016]
[1642448001957,0.53067257,3223.0,3222.7,0.29176016]
[1642448002657,0.53067257,3223.0,3222.7,1.06738016]
[1642448003110,2.35609004,3222.9,3222.7,2.34924714]
[1642448003310,2.35609004,3222.9,3222.7,2.29924714]
[1642448004113,2.35609004,3222.9,3222.8,9.35162493]
[1642448004315,2.35609004,3222.9,3222.8,8.48659331]
[1642448004511,2.35722689,3222.9,3222.8,11.86423546]
[1642448004712,2.35722689,3222.9,3222.8,13.11170469]
[1642448005512,0.00113685,3222.9,3222.8,13.11170469]
[1642448005712,0.00113685,3222.9,3222.8,14.68419498]
[1642448006765,0.00113685,3222.9,3222.8,13.11170469]
[1642448007364,0.00113685,3222.9,3222.8,13.17717717]
[1642448007563,0.00113685,3222.9,3222.8,13.25045865]
[1642448007764,0.00113685,3222.9,3222.8,9.73207738]
[1642448008869,0.00113685,3222.9,3222.8,11.3037808]
[1642448010069,0.00113685,3222.9,3222.8,14.63054703]
[1642448010270,0.00113685,3222.9,3222.8,14.65308227]
[1642448010901,0.00113685,3222.9,3222.8,11.3037808]
[1642448011506,0.00113685,3222.9,3222.8,14.65835601]
[1642448011706,0.00113685,3222.9,3222.8,13.08665259]
[1642448012112,0.00113685,3222.9,3222.8,13.1183183]
[1642448012307,0.00113685,3222.9,3222.8,9.73207738]
[1642448012707,0.00113685,3222.9,3222.8,13.05749632]
[1642448013108,2.35606689,3223.6,3222.8,25.05749632]
[1642448013309,2.35606689,3223.6,3223.1,0.77537]
[1642448013508,0.00341054,3223.5,3223.1,0.77537]
[1642448013908,0.00284212,3223.4,3223.1,0.77537]
[1642448014356,0.00227369,3223.3,3223.1,0.77537]
[1642448014557,0.00227369,3223.3,3223.2,1.86830788]
[1642448014862,2.35606689,3223.6,3223.2,12.86907788]
[1642448015256,0.00341054,3223.5,3223.2,12.86907788]
[1642448015557,0.00284212,3223.4,3223.3,3.34121024]
[1642448015757,0.00284212,3223.4,3223.3,4.11659024]
[1642448015957,0.00284212,3223.4,3223.3,0.77538]
[1642448016158,0.00284212,3223.4,3223.3,2.64368788]
[1642448016359,0.00284212,3223.4,3223.3,5.96616133]
[1642448017871,0.00284212,3223.4,3223.3,4.38847676]
[1642448018106,0.00284212,3223.4,3223.3,1.06600331]
[1642448018906,0.00284212,3223.4,3223.3,5.56600331]
[1642448019708,0.00284212,3223.4,3223.3,7.13947095]
[1642448020111,0.00284212,3223.4,3223.3,2.63947095]
[1642448020509,0.00070802,3223.4,3223.3,2.63947095]
[1642448023153,0.53132678,3223.4,3223.3,2.63947095]
[1642448023553,0.53132678,3223.4,3223.3,1.06600331]
[1642448024656,2.35677491,3223.4,3223.3,1.06600331]
[1642448025263,0.00070802,3223.4,3223.3,2.63947095]
[1642448025508,0.00070802,3223.4,3223.3,3.45607095]
[1642448025902,0.53131776,3223.4,3223.3,3.45607095]
[1642448027101,0.53018366,3223.4,3223.3,3.45607095]
[1642448027806,0.53018366,3223.4,3223.3,10.75607095]
[1642448028001,0.53018366,3223.4,3223.3,3.45607095]
[1642448028803,6.2046,3223.8,3223.3,7.13260331]
[1642448029250,0.00170527,3223.7,3223.3,7.13260331]
[1642448029655,0.00113684,3223.6,3223.3,7.13260331]
[1642448030055,0.00113684,3223.6,3223.4,1.86344405]
[1642448031156,0.00113684,3223.6,3223.5,0.29062331]
[1642448035515,2.36405372,3223.6,3223.5,0.29062331]
[1642448036753,3.89170838,3223.6,3223.5,0.29062331]
[1642448037255,1.5287915,3223.6,3223.5,0.29062331]
[1642448038061,0.00113684,3223.6,3223.5,0.29062331]
[1642448038267,2.36405372,3223.6,3223.5,0.29062331]
[1642448039160,2.36191962,3223.7,3223.6,0.7754]
[1642448039957,6.2046,3223.8,3223.6,0.7754]
[1642448042204,6.2046,3223.8,3223.3,1.57282074]
[1642448042605,6.2046,3223.8,3223.4,0.00113684]
[1642448043806,7.01495478,3223.8,3223.4,0.00113684]
[1642448044006,7.01495478,3223.8,3223.3,0.00170527]
[1642448044660,7.01495478,3223.8,3223.3,1.65687102]
[1642448044858,7.01495478,3223.8,3223.4,0.77536]
[1642448044859,0.81347478,3223.8,3223.4,0.77536]
[1642448045056,0.81347478,3223.8,3223.7,12.61280818]
[1642448045256,0.00312,3223.8,3223.7,12.61280818]
[1642448045456,1.59247515,3224.3,3223.9,0.0096795]
[1642448045655,1.59247515,3224.3,3223.8,9.32514]
[1642448045860,0.00284212,3224.1,3223.9,1.20782579]
[1642448046055,0.00284212,3224.1,3224.0,6.37516]
[1642448046257,1.59247515,3224.3,3224.0,6.37516]
[1642448046655,0.00341055,3224.2,3224.0,6.37516]
[1642448046856,0.00341055,3224.2,3224.0,0.77516]
[1642448047057,0.00284212,3224.1,3224.0,0.77516]
[1642448047660,0.00284212,3224.1,3224.0,11.42516]
[1642448047857,0.53342772,3224.1,3224.0,11.42516]
[1642448048108,0.53342772,3224.1,3224.0,12.64586871]
[1642448049316,0.00284212,3224.1,3224.0,12.64586871]
[1642448049517,0.00284212,3224.1,3224.0,16.11250398]
[1642448050219,0.00284212,3224.1,3224.0,12.64586871]
[1642448050822,0.00284212,3224.1,3224.0,13.86176053]
[1642448050823,0.00070802,3224.1,3224.0,13.86176053]
[1642448051124,0.00070802,3224.1,3224.0,17.24616301]
[1642448051519,0.00070802,3224.1,3224.0,13.86176053]
[1642448051769,0.00070802,3224.1,3224.0,12.64586871]
[1642448052575,1.59247515,3225.1,3224.1,9.65]
[1642448052874,0.00511581,3225.0,3224.4,0.77509]
[1642448053274,1.59247515,3225.1,3224.4,0.77509]
[1642448053275,0.00454739,3224.9,3224.4,0.77509]
[1642448053575,0.00397897,3224.8,3224.4,0.77509]
[1642448053975,0.00341054,3224.7,3224.4,0.77509]
[1642448054375,0.00284212,3224.6,3224.4,0.77509]
[1642448054775,0.0022737,3224.5,3224.4,0.77509]
[1642448055175,0.00397897,3224.5,3224.4,0.77509]
[1642448055609,0.00397897,3224.5,3224.4,13.66519382]
[1642448055809,0.00397897,3224.5,3224.4,0.77509]
[1642448056814,0.00397897,3224.5,3224.2,1.21589182]
[1642448057214,1.94865404,3225.2,3224.0,1.57282074]
[1642448057215,0.00170527,3224.4,3224.0,1.57282074]
[1642448057616,0.00113685,3224.3,3224.0,1.57282074]
[1642448058015,1.12226375,3224.4,3224.0,1.57282074]
[1642448058416,1.12226375,3224.4,3223.9,0.13819997]
[1642448058417,0.00113685,3224.3,3223.9,0.13819997]
[1642448059861,2.24652115,3224.3,3224.0,0.3974605]
[1642448060663,0.00113685,3224.3,3224.0,0.3974605]
[1642448062263,0.00113685,3224.3,3224.1,0.77528]
[1642448064007,0.00113685,3224.3,3224.2,0.3974605]
[1642448067363,3.10113685,3224.3,3224.2,0.3974605]
[1642448068365,5.34652115,3224.3,3224.2,0.3974605]
[1642448068965,6.52508839,3224.3,3224.2,0.3974605]
[1642448069165,12.72808839,3224.3,3224.2,0.3974605]
[1642448070368,11.54952115,3224.3,3224.2,0.3974605]
[1642448072810,11.54737697,3224.3,3224.2,0.3974605]
[1642448074760,11.38480836,3224.3,3224.2,0.3974605]
[1642448080212,11.38480836,3224.3,3224.2,12.85951384]
[1642448080412,11.38480836,3224.3,3224.2,9.2065605]
[1642448081016,11.38480836,3224.3,3224.2,10.7569205]
[1642448081220,11.38480836,3224.3,3224.2,15.55214339]
[1642448081418,11.38480836,3224.3,3224.2,11.87082579]
[1642448082660,9.13942406,3224.3,3224.2,13.44364653]
[1642448083466,9.13942406,3224.3,3224.2,16.91249302]
[1642448083665,2.93895406,3224.3,3224.2,24.80694565]
[1642448083866,1.59247515,3225.3,3224.6,0.77508]
[1642448084067,1.59247515,3225.3,3224.7,3.41629201]
[1642448084267,0.00511581,3225.2,3224.7,3.41629201]
[1642448084466,0.00511581,3225.2,3224.6,1.23098]
[1642448084666,0.00454739,3225.1,3224.6,1.23098]
[1642448084867,0.00454739,3225.1,3224.6,1.01998]
[1642448085070,0.00397896,3225.0,3224.6,0.77508]
[1642448085510,0.00341054,3224.9,3224.6,0.77508]
[1642448085912,0.00284212,3224.8,3224.6,0.52508]
[1642448086113,0.00284212,3224.8,3224.7,0.3974605]
[1642448086315,2.35887724,3225.0,3224.7,0.3974605]
[1642448086715,6.20521054,3224.9,3224.7,0.3974605]
[1642448087213,0.00284212,3224.8,3224.7,0.3974605]
[1642448088014,2.36171936,3224.8,3224.4,2.78002732]
[1642448088215,2.36171936,3224.8,3224.4,1.5641355]
[1642448088414,0.00227369,3224.7,3224.4,1.5641355]
[1642448088816,0.00170527,3224.6,3224.4,1.5641355]
[1642448089264,0.00113685,3224.5,3224.4,1.5641355]
[1642448090959,0.00113685,3224.5,3224.3,2.7225355]
[1642448091162,0.00113685,3224.5,3224.3,1.5641355]
[1642448093207,0.00113685,3224.5,3224.4,5.52517]
[1642448093407,0.86154079,3224.3,3224.2,1.64481263]
[1642448097464,2.00032862,3224.3,3224.0,2.34297715]
[1642448097865,4.39325314,3224.3,3224.1,0.00113685]
[1642448098263,4.39325314,3224.3,3224.0,0.00170527]
[1642448098866,2.00032862,3224.3,3224.0,0.00170527]
[1642448099968,2.39302767,3224.2,3224.0,0.00170527]
[1642448101514,2.39089352,3224.2,3224.0,1.55214527]
[1642448102311,0.86154079,3224.3,3224.0,1.55214527]
[1642448104120,0.86154079,3224.3,3224.1,1.56994857]
[1642448107669,0.86154079,3224.3,3224.1,2.34520857]
[1642448109025,0.86154079,3224.3,3224.1,1.56994857]
[1642448110528,0.86154079,3224.3,3224.1,1.51994857]
[1642448111967,0.86154079,3224.3,3224.0,0.00170527]
[1642448112370,0.53054849,3224.2,3224.0,0.00170527]
[1642448113773,0.53054849,3224.2,3224.1,6.62522]
[1642448114874,0.53054849,3224.2,3224.1,0.77522]
[1642448115074,0.86154079,3224.3,3224.1,0.77522]
[1642448115275,0.00113685,3224.5,3224.3,4.7]
[1642448115508,0.00113685,3224.5,3224.2,3.50928202]
[1642448115713,0.00113685,3224.5,3224.2,0.01233757]
[1642448116316,0.00113685,3224.5,3224.4,0.77512]
[1642448117116,6.20080267,3224.9,3224.4,0.77512]
[1642448117516,0.00170527,3224.8,3224.4,0.77512]
[1642448117721,0.53212579,3224.8,3224.4,0.77512]
[1642448118018,0.00113684,3224.7,3224.4,0.77512]
[1642448119020,0.53042052,3224.6,3224.4,0.77512]
[1642448119865,0.53042052,3224.6,3224.4,4.15718526]
[1642448120166,0.53042052,3224.6,3224.4,0.77512]
[1642448120966,0.53042052,3224.6,3224.4,2.34276064]
[1642448121467,0.53042052,3224.6,3224.4,1.56764064]
[1642448121866,2.39673723,3224.5,3224.4,0.25144427]
[1642448122669,0.53042052,3224.6,3224.4,0.25144427]
[1642448122866,0.53042052,3224.6,3224.4,1.81908491]
[1642448125118,2.39780776,3224.5,3224.4,0.25144427]
[1642448125516,2.39567358,3224.5,3224.4,0.25144427]
[1642448126117,2.39567358,3224.5,3224.2,2.34290064]
[1642448126322,2.9260941,3224.5,3224.2,0.77526]
[1642448126518,2.9260941,3224.5,3224.3,0.00113685]
[1642448127469,0.53042052,3224.5,3224.3,0.00113685]
[1642448127670,0.53042052,3224.4,3224.3,1.55145685]
[1642448129072,0.53042052,3224.4,3224.3,0.00113685]
[1642448129272,0.53042052,3224.6,3224.3,0.00113685]
[1642448131119,0.53042052,3224.6,3224.2,0.00170527]
[1642448131720,0.53042052,3224.6,3224.3,0.77523]
[1642448134026,0.52828634,3224.6,3224.3,0.77523]
[1642448134668,0.52828634,3224.6,3224.3,4.23381438]
[1642448135471,0.52828634,3224.6,3224.4,3.37884131]
[1642448135671,0.52828634,3224.6,3224.3,0.77523]
[1642448136274,0.52828634,3224.6,3224.3,2.34287064]
[1642448136870,0.52828634,3224.6,3224.3,2.29287064]
[1642448137876,0.52828634,3224.6,3224.3,1.56764064]
[1642448138122,1.26157781,3224.5,3224.3,1.56764064]
[1642448138926,1.26157781,3224.5,3224.2,1.56934591]
[1642448139127,0.52828634,3224.6,3224.2,1.56934591]
[1642448139331,0.00113684,3224.7,3224.3,0.00113685]
[1642448140529,1.14730043,3224.6,3224.3,0.77523]
[1642448142468,1.14730043,3224.6,3224.2,0.00170527]
[1642448143269,0.00113684,3224.7,3224.2,0.00170527]
[1642448143470,6.19880533,3224.9,3224.2,0.00170527]
[1642448143670,6.19880533,3224.9,3224.2,0.00284211]
[1642448145073,1.35425073,3224.8,3224.2,0.00284211]
[1642448146021,2.38463317,3224.7,3224.2,0.26680907]
[1642448146424,2.38463317,3224.7,3224.3,0.00227369]
[1642448147129,2.38463317,3224.7,3224.4,0.77522]
[1642448147526,2.38463317,3224.7,3224.5,0.00113684]
[1642448148428,2.38463317,3224.7,3224.5,0.2651038]
[1642448153721,2.38463317,3224.7,3224.5,0.2151038]
[1642448154322,2.38463317,3224.7,3224.2,1.56764064]
[1642448154726,0.53048385,3224.6,3224.3,0.00113685]
[1642448155125,6.19880533,3224.5,3224.3,3.67896771]
[1642448155324,6.19880533,3224.5,3224.3,1.38857711]
[1642448155524,6.19880533,3224.5,3224.3,0.00113685]
[1642448155923,6.19880533,3224.5,3224.1,0.0022737]
[1642448156523,6.19880533,3224.5,3224.4,7.25029]
[1642448157369,6.19880533,3224.5,3224.4,21.82812086]
[1642448157566,6.72922581,3224.5,3224.4,18.15029]
[1642448157768,0.52903581,3224.5,3224.4,19.71793064]
[1642448157965,0.83910827,3225.3,3224.5,9.05]
[1642448158166,0.83910827,3225.3,3224.6,0.775]
[1642448158368,0.00397896,3225.2,3224.6,0.775]
[1642448158770,0.00341054,3225.1,3224.6,0.775]
[1642448159171,4.07592656,3225.4,3224.6,0.775]
[1642448159172,0.00284211,3225.0,3224.6,0.775]
[1642448159671,0.00227369,3224.9,3224.8,0.77502]
[1642448159875,0.00227369,3224.9,3224.8,4.27305478]
[1642448160275,0.8169405,3225.6,3224.9,10.25]
[1642448160521,0.8169405,3225.6,3225.0,4.57188073]
[1642448160717,0.00227369,3225.3,3225.0,4.57188073]
[1642448160918,0.00227369,3225.3,3225.0,5.11430743]
[1642448161118,0.00170527,3225.2,3225.0,5.11430743]
[1642448161319,0.00170527,3225.2,3225.1,3.42143922]
[1642448161521,1.95918057,3225.6,3225.1,0.7749]
[1642448161722,1.14224007,3225.6,3225.1,0.7749]
[1642448161922,0.00341054,3225.5,3225.1,0.7749]
[1642448162321,0.00284212,3225.4,3225.1,0.7749]
[1642448162724,1.14224007,3225.6,3225.1,1.54982]
[1642448162725,0.00227369,3225.3,3225.1,1.54982]
[1642448162923,0.00227369,3225.3,3225.1,0.7749]
[1642448163124,0.00170527,3225.2,3225.1,0.7749]
[1642448163323,0.00170527,3225.2,3225.1,4.15008271]
[1642448163524,1.59074139,3225.8,3225.2,5.8]
[1642448163725,6.2006,3225.7,3225.1,4.15008271]
[1642448163926,6.20344212,3225.7,3225.1,4.15008271]
[1642448164126,6.20344212,3225.7,3225.3,1.39109858]
[1642448164371,6.20344212,3225.7,3225.4,0.77488]
[1642448164571,6.20344212,3225.7,3225.4,5.09215264]
[1642448164572,7.02038262,3225.7,3225.4,5.09215264]
[1642448164770,0.82266262,3225.7,3225.4,5.09215264]
[1642448165177,0.82266262,3225.7,3225.5,1.54948]
[1642448165976,0.00572212,3225.7,3225.5,1.54948]
[1642448166276,0.00572212,3225.7,3225.6,3.42915965]
[1642448167375,0.00572212,3225.7,3225.5,1.54948]
[1642448167576,0.0103576,3226.0,3225.8,0.77469]
[1642448168035,0.00113684,3225.9,3225.8,0.77469]
[1642448168225,0.31133684,3225.9,3225.8,0.77469]
[1642448168427,0.0103576,3226.0,3225.9,4.7]
[1642448168626,0.7772981,3226.3,3225.9,9.72302243]
[1642448168825,2.76771928,3226.5,3225.9,0.906]
[1642448169027,0.00170527,3226.2,3225.9,0.906]
[1642448169427,0.00113685,3226.1,3225.9,0.906]
[1642448169629,2.76672195,3226.5,3225.8,4.26359]
[1642448169828,2.76672195,3226.5,3225.8,3.87469]
[1642448170031,0.00170527,3226.4,3225.9,0.77585685]
[1642448170434,0.00113685,3226.3,3225.9,0.77585685]
[1642448170630,0.00113685,3226.3,3225.9,0.00113685]
[1642448172875,1.5912672,3226.3,3225.9,0.00113685]
[1642448173875,1.59013035,3226.1,3225.9,0.00113685]
[1642448174876,1.59013035,3226.1,3225.9,0.26410786]
[1642448176433,1.54013035,3226.1,3225.9,0.26410786]
[1642448176634,2.38855908,3226.3,3225.9,0.26410786]
[1642448176833,2.38262079,3226.0,3225.9,0.26410786]
[1642448177835,2.38375764,3226.3,3225.9,0.26410786]
[1642448178436,2.38262079,3226.0,3225.9,0.26410786]
[1642448185322,2.91287045,3226.0,3225.9,0.26410786]
[1642448186024,2.91287045,3226.0,3225.9,6.26410786]
[1642448186871,2.91287045,3226.0,3225.9,0.26410786]
[1642448187073,2.38262079,3226.0,3225.9,0.26410786]
[1642448191922,2.38262079,3226.0,3225.9,4.91410786]
[1642448192322,2.38262079,3226.0,3225.9,0.26410786]
[1642448195874,2.38262079,3226.0,3225.9,8.51410786]
[1642448196876,0.00113685,3226.3,3226.0,7.4]
[1642448197076,0.00113685,3226.3,3226.2,10.22458]
[1642448197275,6.20033685,3226.3,3226.2,14.10021126]
[1642448197474,0.00388685,3226.3,3226.2,14.10021126]
[1642448197876,0.00388685,3226.3,3226.2,9.50021126]
[1642448198124,0.00600267,3226.5,3226.3,8.45]
[1642448198323,5.9989,3226.4,3226.3,8.45]
[1642448198523,5.9989,3226.4,3226.3,3.48273504]
[1642448198925,5.9989,3226.4,3226.1,6.63849978]
[1642448199125,5.9989,3226.4,3226.1,1.54915]
[1642448202908,5.99676582,3226.4,3226.1,1.54915]
[1642448205313,5.99676582,3226.4,3225.8,4.64956]
[1642448205726,5.99676582,3226.4,3225.9,0.0022737]
[1642448208724,5.99676582,3226.4,3226.0,0.77476]
[1642448209129,5.99676582,3226.4,3226.1,0.00113685]
[1642448209973,1.10289171,3226.3,3226.1,0.00113685]
[1642448216030,17.0769782,3226.2,3226.1,0.00113685]
[1642448217071,6.5269782,3226.2,3226.1,0.00113685]
[1642448218275,11.54799588,3226.2,3226.1,0.00113685]
[1642448218675,11.54799588,3226.2,3226.0,0.00170527]
[1642448219275,8.7872766,3226.2,3226.0,0.00170527]
[1642448220377,2.2602984,3226.1,3226.0,0.00170527]
[1642448220626,8.25706422,3226.1,3226.0,0.00170527]
[1642448221927,8.78729623,3226.1,3226.0,0.00170527]
[1642448226583,14.03729623,3226.1,3226.0,0.00170527]
[1642448226784,8.78729623,3226.1,3226.0,0.00170527]
[1642448237023,8.78729623,3226.1,3226.0,0.38450456]
[1642448237421,8.78729623,3226.1,3226.0,5.78450456]
[1642448238226,8.78729623,3226.1,3226.0,5.40170527]
[1642448238627,8.78729623,3226.1,3226.0,6.17650527]
[1642448239477,8.78729623,3226.1,3226.0,6.55930456]
[1642448242081,8.78729623,3226.1,3226.0,1.15930456]
[1642448246328,8.78729623,3226.1,3226.0,0.38450456]
[1642448247370,8.78729623,3226.1,3226.0,8.85923456]
[1642448248574,8.78729623,3226.1,3226.0,8.85752929]
[1642448249776,8.78729623,3226.1,3226.0,12.36778381]
[1642448250534,8.78729623,3226.1,3226.0,8.85752929]
[1642448250727,8.78729623,3226.1,3226.0,12.30649843]
[1642448253331,8.78729623,3226.1,3226.0,16.60649843]
[1642448253730,8.78729623,3226.1,3226.0,8.85752929]
[1642448254131,8.25706422,3226.1,3226.0,8.85752929]
[1642448254607,8.25706422,3226.1,3226.0,12.70436065]
[1642448255610,8.25706422,3226.1,3226.0,12.27487694]
[1642448255809,8.25706422,3226.1,3226.0,8.85752929]
[1642448256010,8.25706422,3226.1,3226.0,1.15752929]
[1642448257210,8.25706422,3226.1,3226.0,13.2432593]
[1642448257810,8.25706422,3226.1,3226.0,9.80752929]
[1642448258026,8.25706422,3226.1,3226.0,1.15752929]
[1642448258835,8.25706422,3226.1,3226.0,0.38279929]
[1642448259231,8.25706422,3226.1,3226.0,4.58279929]
[1642448259433,8.25706422,3226.1,3226.0,5.35752929]
[1642448261131,8.25706422,3226.1,3226.0,8.78960969]
[1642448261331,8.25706422,3226.1,3226.0,5.35752929]
[1642448261539,8.25706422,3226.1,3226.0,8.83474093]
[1642448261780,2.06025422,3226.1,3226.0,8.83474093]
[1642448262177,2.06025422,3226.1,3226.0,12.88474093]
[1642448262378,0.00600267,3226.5,3226.1,12.0]
[1642448262579,0.00600267,3226.5,3226.4,4.4]
[1642448262781,0.00600267,3226.5,3226.4,6.18924]
[1642448262978,0.00713951,3226.5,3226.4,6.18924]
[1642448263378,0.00713951,3226.5,3226.4,9.67814407]
[1642448263578,0.00713951,3226.5,3226.4,6.18924]
[1642448263978,0.00713951,3226.5,3226.4,9.8277311]
[1642448264184,2.38742223,3227.2,3226.5,9.1]
[1642448264185,1.59007028,3227.2,3226.5,9.1]
[1642448264380,1.59007028,3227.2,3226.8,0.77447]
[1642448264581,0.0022737,3226.9,3226.8,0.77447]
[1642448265622,0.0022737,3226.9,3226.7,2.17282405]
[1642448265828,0.53236445,3226.9,3226.7,2.17282405]
[1642448266028,0.00170528,3226.8,3226.7,2.17282405]
[1642448266430,0.53009075,3226.9,3226.8,3.09829472]
[1642448267329,0.53009075,3227.2,3226.8,3.09829472]
[1642448267629,0.53236444,3227.2,3226.8,3.09829472]
[1642448268632,0.53009075,3227.1,3226.8,3.09829472]
[1642448269032,0.00113684,3227.0,3226.8,3.09829472]
[1642448269979,0.53009075,3226.9,3226.8,3.09829472]
[1642448270177,0.53009075,3226.9,3226.8,3.87286472]
[1642448270380,0.53009075,3226.9,3226.8,3.09829472]
[1642448272581,0.00113684,3227.0,3226.8,3.09829472]
[1642448272782,6.1979,3226.9,3226.8,3.87287472]
[1642448273734,6.1979,3226.9,3226.8,3.09829472]
[1642448273939,6.72800551,3226.9,3226.8,3.09829472]
[1642448280009,12.12800551,3226.9,3226.8,3.09829472]
[1642448280209,6.67800551,3226.9,3226.8,3.09829472]
[1642448281027,6.1479,3226.9,3226.8,3.09829472]
[1642448282438,6.67807244,3226.9,3226.8,3.09829472]
[1642448282835,8.85737282,3226.9,3226.8,3.09829472]
[1642448284883,8.85523864,3226.9,3226.8,3.09829472]
[1642448291554,14.9,3226.8,3225.7,1.31330937]
[1642448291777,9.9366802,3226.7,3225.7,1.31330937]
[1642448291978,0.01261374,3226.4,3225.8,0.00568424]
[1642448292278,6.14576582,3226.3,3225.8,0.00568424]
[1642448292681,6.14576582,3226.3,3225.8,0.4342254]
[1642448292886,1.45683689,3226.2,3225.8,0.4342254]
[1642448293081,6.14576582,3226.1,3225.9,0.00511582]
[1642448294483,2.17930038,3226.0,3225.3,0.00852636]
[1642448294884,2.17930038,3226.0,3225.1,0.0096632]
[1642448295285,2.17930038,3226.0,3225.4,0.44495273]
[1642448295834,2.17930038,3226.0,3225.5,0.00738951]
[1642448296432,2.17930038,3226.0,3225.5,3.10738951]
[1642448296838,2.17930038,3226.0,3225.6,0.00682109]
[1642448297938,2.17930038,3226.0,3225.7,0.44495273]
[1642448299143,2.17930038,3226.0,3225.8,0.44495273]
[1642448299380,6.14576582,3225.9,3225.8,0.44495273]
[1642448300381,6.14576582,3225.9,3225.5,3.1]
[1642448300888,6.14576582,3225.9,3225.6,0.00682109]
[1642448301080,2.17930038,3225.8,3225.6,0.00682109]
[1642448301881,2.17930038,3225.8,3225.6,3.48826456]
[1642448302082,2.12930038,3225.8,3225.6,0.00682109]
[1642448302282,2.12930038,3225.8,3225.7,0.00625266]
[1642448302783,2.12930038,3225.8,3225.7,8.10625266]
[1642448303027,6.14576582,3225.9,3225.7,11.88934522]
[1642448303233,6.14576582,3225.9,3225.8,12.17169477]
[1642448303434,6.14576582,3225.9,3225.8,12.17737901]
[1642448304031,6.14576582,3225.9,3225.8,3.77737901]
[1642448304830,6.14576582,3225.9,3225.8,0.00568424]
[1642448305231,7.61393907,3225.9,3225.8,0.00568424]
[1642448305432,6.14576582,3225.9,3225.8,3.50749352]
[1642448305633,6.14576582,3225.9,3225.8,4.40568424]
[1642448306632,6.14576582,3225.9,3225.8,7.90955839]
[1642448306878,7.50549958,3225.9,3225.8,0.00568424]
[1642448307686,7.5033654,3225.9,3225.8,0.00568424]
[1642448307884,7.5033654,3225.9,3225.7,0.00625266]
[1642448316285,7.4533654,3225.9,3225.7,0.00625266]
[1642448316683,7.4533654,3225.9,3225.8,0.77482]
[1642448317086,7.4533654,3225.9,3225.8,0.78050424]
[1642448317486,6.09363164,3225.9,3225.8,4.44575912]
[1642448317687,6.09363164,3225.9,3225.8,10.94575912]
[1642448318129,6.09363164,3225.9,3225.8,10.9868853]
[1642448319936,6.09363164,3225.9,3225.8,7.28050424]
[1642448320136,6.09363164,3225.9,3225.8,4.43233224]
[1642448320335,6.09363164,3225.9,3225.8,4.45758074]
[1642448320536,6.09363164,3225.9,3225.8,0.78050424]
[1642448322485,6.62385804,3225.9,3225.8,0.78050424]
[1642448322686,6.62385804,3225.9,3225.8,1.23854729]
[1642448322886,6.62385804,3225.9,3225.8,0.46372729]
[1642448323686,6.09363164,3225.9,3225.8,0.46372729]